bitfinex/quotes_ETHUSD_20250507
["timestamp","ask_amount","ask_price","bid_price","bid_amount"]
[1746598920441,5.45107658,1834.5,1834.2,0.19514781]
[1746598920959,6.23277658,1834.5,1834.2,0.19514781]
[1746598921332,5.45148549,1834.4,1834.2,0.19514781]
[1746598921652,5.45167093,1834.3,1834.2,0.19514781]
[1746598922553,5.45167093,1834.3,1834.2,18.19514781]
[1746598923258,6.61999174,1834.4,1834.2,18.19514781]
[1746598924757,5.45167093,1834.3,1834.2,18.19514781]
[1746598927162,5.45167093,1834.3,1834.2,0.19514781]
[1746598927358,6.61998208,1834.4,1834.0,5.45254928]
[1746598927559,6.61998208,1834.4,1834.1,0.1973957]
[1746598929274,12.07163501,1834.4,1834.1,0.1973957]
[1746598929759,6.61998208,1834.4,1834.1,0.1973957]
[1746598929938,5.45167833,1834.3,1834.1,0.1973957]
[1746598930139,5.45167833,1834.3,1833.9,17.09799004]
[1746598930330,5.45167833,1834.3,1834.0,0.19785049]
[1746598931876,5.45167833,1834.3,1834.0,5.65039128]
[1746598932174,6.61997873,1834.4,1834.0,5.65039128]
[1746598932375,5.45167279,1834.3,1834.0,0.19785049]
[1746598932873,5.45167279,1834.3,1834.0,5.65039917]
[1746598933777,6.61991869,1834.4,1834.1,5.45224585]
[1746598933946,6.61991869,1834.4,1834.2,1.00951933]
[1746598934357,6.61991869,1834.4,1834.2,0.18321933]
[1746598934557,6.61991869,1834.4,1834.0,11.6748725]
[1746598934772,6.61991869,1834.4,1834.1,0.18367406]
[1746598940884,1.16842621,1834.4,1834.1,5.63579637]
[1746598941059,5.45148024,1834.4,1834.1,0.18367406]
[1746598941261,10.88426341,1834.5,1834.1,5.69046077]
[1746598941585,10.88426341,1834.5,1834.2,6.24955602]
[1746598941883,10.88426341,1834.5,1834.3,0.18276464]
[1746598942090,16.33556601,1834.5,1834.3,0.18276464]
[1746598942291,18.38261111,1834.5,1834.3,0.18276464]
[1746598942590,5.45137374,1834.4,1834.3,0.18276464]
[1746598942888,10.90299845,1834.4,1834.0,6.25003331]
[1746598943093,5.45137374,1834.4,1834.3,0.18276464]
[1746598943380,5.45167829,1834.3,1834.0,6.25003331]
[1746598944693,5.45167829,1834.3,1834.0,0.7976]
[1746598948215,5.45211667,1834.2,1833.9,0.7569]
[1746598948416,5.45237625,1834.1,1833.7,17.09545839]
[1746598948574,5.45237625,1834.1,1833.7,0.7569]
[1746598948760,8.54955995,1834.2,1833.8,5.4531252]
[1746598948966,0.854956,1834.1,1833.8,5.4531252]
[1746598950702,6.30726589,1834.1,1833.8,5.4531252]
[1746598951382,6.30726589,1834.1,1833.9,0.16865079]
[1746598951571,6.30726589,1834.1,1833.8,5.4531252]
[1746598951773,6.30726589,1834.1,1833.9,0.16865079]
[1746598951995,6.30726589,1834.1,1833.8,5.4531252]
[1746598952198,6.30726589,1834.1,1833.9,0.16931544]
[1746598952381,6.30726589,1834.1,1833.7,11.66359538]
[1746598952579,6.30726589,1834.1,1833.8,0.16977032]
[1746598952784,6.30726589,1834.1,1833.8,5.62288494]
[1746598952986,8.54964637,1834.2,1833.8,5.62288494]
[1746598953575,14.00187354,1834.2,1833.8,5.62288494]
[1746598953907,8.54964637,1834.2,1833.8,5.62288494]
[1746598954109,14.00187581,1834.2,1833.8,5.62288494]
[1746598954329,15.51936957,1834.2,1833.8,5.62288494]
[1746598954704,10.06714013,1834.2,1833.8,5.62288494]
[1746598955214,15.51936355,1834.2,1833.8,5.62288494]
[1746598956311,5.45230774,1834.1,1833.8,5.62288494]
[1746598957110,5.45230774,1834.1,1833.8,0.16977032]
[1746598957313,5.45268623,1834.0,1833.8,0.16977032]
[1746598957677,6.45903643,1834.1,1833.8,0.16977032]
[1746598958292,1.00672869,1834.1,1833.8,5.62292305]
[1746598958493,8.54957835,1834.2,1833.8,5.62292305]
[1746598958693,6.26189293,1834.2,1833.8,5.62292305]
[1746598959295,5.45226653,1834.1,1833.8,5.62292305]
[1746598962886,6.26189293,1834.2,1833.8,5.62292305]
[1746598965420,6.26189293,1834.2,1833.8,0.16977032]
[1746598965621,6.26189293,1834.2,1833.8,5.62274646]
[1746598967293,7.55056973,1834.2,1833.8,5.62274646]
[1746598967726,3.0,1834.2,1833.8,5.62273788]
[1746598967939,3.0,1834.2,1833.9,6.32978408]
[1746598968149,3.0,1834.2,1833.9,6.27525661]
[1746598968357,3.0,1834.2,1834.0,0.16985766]
[1746598969615,8.4521075,1834.2,1834.0,0.16985766]
[1746598969947,9.84249841,1834.2,1834.0,0.16985766]
[1746598972641,15.29471928,1834.2,1834.0,0.16985766]
[1746598973243,5.45226541,1834.1,1833.8,6.2123773]
[1746598973941,5.4526011,1834.0,1833.8,0.7594]
[1746598974114,5.45226541,1834.1,1833.8,0.7594]
[1746598974313,5.45226541,1834.1,1833.8,6.21254891]
[1746598974843,5.45226541,1834.1,1833.8,0.7594]
[1746598975223,5.45226541,1834.1,1833.8,6.21254188]
[1746598975425,5.45226541,1834.1,1833.8,0.7594]
[1746598975748,5.45226541,1834.1,1833.7,5.45332852]
[1746598980259,5.45404963,1833.5,1833.4,3.67237946]
[1746598980441,3.0,1833.9,1833.4,3.67237946]
[1746598980629,5.45315737,1833.8,1833.5,0.8003]
[1746598981456,5.431,1834.0,1833.7,5.45340627]
[1746598981660,5.4524952,1834.1,1833.7,6.78202068]
[1746598981824,5.4524952,1834.1,1833.8,0.1231914]
[1746598982024,5.4524952,1834.1,1833.8,5.57633364]
[1746598982552,5.45206405,1834.2,1833.8,5.57633364]
[1746598982940,5.452276,1834.1,1833.8,0.1231914]
[1746598983344,5.452276,1834.1,1833.8,5.57633749]
[1746598983955,5.45216952,1834.2,1833.8,5.57633749]
[1746598984265,8.45216952,1834.2,1833.9,18.0]
[1746598984760,8.45216952,1834.2,1834.0,0.12294527]
[1746598984971,10.52095089,1834.2,1834.0,0.12294527]
[1746598985256,3.0,1834.2,1834.0,0.12294527]
[1746598985629,8.45204784,1834.2,1834.0,0.12294527]
[1746598989159,13.90427403,1834.2,1834.0,0.12294527]
[1746598989383,8.45204784,1834.2,1834.0,0.12294527]
[1746598989864,5.45226541,1834.1,1834.0,0.12294527]
[1746598993949,8.45219073,1834.2,1834.0,0.12294527]
[1746598994276,13.90444287,1834.2,1834.0,0.12294527]
[1746598994739,5.45226541,1834.1,1834.0,0.12294527]
[1746598997265,5.45226541,1834.1,1833.8,0.8188]
[1746598997460,5.45226541,1834.1,1834.0,0.12286235]
[1746598997672,5.45226541,1834.1,1833.9,0.12331719]
[1746598997978,5.45226541,1834.1,1834.0,0.12286235]
[1746598998289,5.45226541,1834.1,1833.8,0.8188]
[1746598998472,8.45202211,1834.2,1834.0,0.12286235]
[1746598998679,5.4525627,1834.0,1833.9,0.12331719]
[1746598998860,10.90535659,1834.0,1833.6,17.67962489]
[1746598999180,5.45286705,1833.9,1833.6,12.24962489]
[1746598999586,5.4525627,1834.0,1833.6,12.24962489]
[1746598999587,5.45272433,1834.0,1833.6,12.24962489]
[1746598999787,5.45272433,1834.0,1833.6,14.93022526]
[1746598999988,5.45272433,1834.0,1833.6,14.93018691]
[1746599000163,5.45272433,1834.0,1833.7,5.45342514]
[1746599000555,11.72370348,1834.1,1833.7,5.45342514]
[1746599000759,6.27114609,1834.1,1833.7,5.45342514]
[1746599000956,11.72367074,1834.1,1833.7,7.49179051]
[1746599001351,6.27114609,1834.1,1833.7,7.49179051]
[1746599001913,5.45257458,1834.0,1833.7,7.49179051]
[1746599002591,5.45257458,1834.0,1833.7,2.03836537]
[1746599002887,5.45257458,1834.0,1833.7,7.49180328]
[1746599006499,6.27114609,1834.1,1833.7,7.49180328]
[1746599006796,11.72363898,1834.1,1833.7,7.49180328]
[1746599007297,6.27114609,1834.1,1833.7,7.49180328]
[1746599008005,11.72366233,1834.1,1833.7,7.49180328]
[1746599008166,11.72366233,1834.1,1833.7,5.45343791]
[1746599008572,6.27114609,1834.1,1833.7,5.45343791]
[1746599009503,5.45244609,1834.1,1833.7,5.45343791]
[1746599009665,5.45244609,1834.1,1833.8,0.754]
[1746599009997,10.90496343,1834.1,1833.8,0.754]
[1746599010204,5.45260161,1834.0,1833.8,0.754]
[1746599010993,5.45277247,1834.0,1833.6,6.27245076]
[1746599011492,5.45277247,1834.0,1833.7,0.124144]
[1746599011704,5.45315737,1833.8,1833.7,0.124144]
[1746599011923,5.45303361,1833.9,1833.7,0.124144]
[1746599016980,5.45303361,1833.9,1833.5,5.45403076]
[1746599017185,5.45303361,1833.9,1833.6,0.12542852]
[1746599017388,10.9061588,1833.9,1833.6,0.12542852]
[1746599017878,6.70087407,1833.9,1833.6,0.12542852]
[1746599018104,12.15399712,1833.9,1833.6,0.12542852]
[1746599018512,5.45317337,1833.8,1833.6,0.12542852]
[1746599018722,5.45345476,1833.7,1833.6,0.12542852]
[1746599019019,5.453772,1833.6,1833.4,0.7901]
[1746599020609,5.453772,1833.6,1833.5,18.0]
[1746599021441,5.9991492,1833.6,1833.5,18.0]
[1746599022345,5.45413876,1833.5,1833.3,3.67237946]
[1746599023737,5.45413876,1833.5,1833.2,6.2244]
[1746599025839,5.45413876,1833.5,1833.2,11.67927114]
[1746599026214,0.5453772,1833.6,1833.3,0.14228508]
[1746599026444,5.45384475,1833.6,1833.3,0.14228508]
[1746599032747,10.90783196,1833.6,1833.3,0.14228508]
[1746599033043,5.45415583,1833.5,1833.3,0.14228508]
[1746599033649,6.54459326,1833.6,1833.3,0.14228508]
[1746599034415,11.99857387,1833.6,1833.3,0.14228508]
[1746599034615,6.54459326,1833.6,1833.3,0.14228508]
[1746599036340,8.453664,1833.7,1833.3,5.59692497]
[1746599036956,5.45384684,1833.6,1833.3,0.14228508]
[1746599039477,8.45358721,1833.7,1833.3,5.59690651]
[1746599039652,8.45358721,1833.7,1833.3,6.36120651]
[1746599039854,3.0,1833.7,1833.3,6.41560851]
[1746599040053,3.0,1833.7,1833.4,0.64156085]
[1746599040244,8.4536036,1833.7,1833.5,0.11973504]
[1746599040657,8.4536036,1833.7,1833.3,6.2732847]
[1746599040857,8.4536036,1833.7,1833.4,0.12019012]
[1746599041556,3.0,1833.7,1833.5,0.7516]
[1746599041856,3.0,1833.7,1833.6,0.11928]
[1746599042060,6.21680685,1834.1,1833.7,0.7548]
[1746599042356,6.21680685,1834.1,1833.8,0.11837008]
[1746599042661,5.45240685,1834.1,1833.8,0.11837008]
[1746599043634,8.4521301,1834.2,1833.8,5.57141446]
[1746599043830,8.4521301,1834.2,1833.8,0.11837008]
[1746599044030,5.45236009,1834.1,1833.8,0.11837008]
[1746599046229,8.4521301,1834.2,1833.8,5.57135929]
[1746599046428,8.4521301,1834.2,1833.8,0.11837008]
[1746599047263,5.45234762,1834.1,1833.8,0.11837008]
[1746599048059,8.4521328,1834.2,1833.8,0.11837008]
[1746599048265,8.4521328,1834.2,1833.8,5.57137436]
[1746599048767,8.4521328,1834.2,1833.8,5.62589996]
[1746599049533,5.45227431,1834.1,1833.8,5.62589996]
[1746599049883,8.45216569,1834.2,1833.9,0.783]
[1746599050032,8.45216569,1834.2,1834.0,0.13906078]
[1746599050764,13.90437224,1834.2,1834.0,0.13906078]
[1746599051345,5.45226541,1834.1,1834.0,0.13906078]
[1746599052251,8.45216569,1834.2,1834.0,0.13906078]
[1746599052569,13.90437883,1834.2,1834.0,0.13906078]
[1746599052772,8.45216569,1834.2,1834.0,0.13906078]
[1746599053272,5.45226541,1834.1,1834.0,0.13906078]
[1746599054875,5.45226541,1834.1,1833.8,0.8067]
[1746599054876,5.45258613,1834.0,1833.8,0.8067]
[1746599055077,5.45258613,1834.0,1833.9,0.13691864]
[1746599055372,5.45315737,1833.8,1833.7,0.8067]
[1746599055572,5.45315737,1833.8,1833.4,5.45419368]
[1746599055776,5.45315737,1833.8,1833.4,6.26089368]
[1746599055949,5.45315737,1833.8,1833.4,7.79966906]
[1746599056453,10.90655423,1833.8,1833.5,0.13945083]
[1746599056836,5.45315737,1833.8,1833.5,0.13945083]
[1746599058667,5.45315737,1833.8,1833.6,18.0]
[1746599058982,5.45315737,1833.8,1833.7,0.13835881]
[1746599059861,6.21685737,1833.9,1833.7,0.13835881]
[1746599060259,5.45315737,1833.8,1833.5,5.45404146]
[1746599060564,5.45315737,1833.8,1833.6,0.13890479]
[1746599061280,5.45315737,1833.8,1833.7,0.13835881]
[1746599061486,5.45345523,1833.7,1833.4,6.31538214]
[1746599061687,10.90654252,1833.8,1833.5,0.15947005]
[1746599061894,5.45315737,1833.8,1833.5,0.15947005]
[1746599062889,5.45334874,1833.8,1833.5,0.15947005]
[1746599063089,5.45315737,1833.8,1833.5,0.15947005]
[1746599063390,5.45347562,1833.7,1833.5,0.15947005]
[1746599064816,5.45315737,1833.8,1833.5,0.15947005]
[1746599066304,5.45375218,1833.6,1833.5,0.15947005]
[1746599066490,5.45375218,1833.6,1833.3,0.8171]
[1746599066670,5.45375218,1833.6,1833.4,0.16015267]
[1746599067075,5.45358004,1833.7,1833.4,0.16015267]
[1746599067708,10.90732869,1833.7,1833.4,0.16015267]
[1746599068003,5.45358004,1833.7,1833.4,0.16015267]
[1746599068498,10.90726244,1833.7,1833.4,0.16015267]
[1746599068799,5.45377149,1833.6,1833.4,0.16015267]
[1746599068999,5.45404963,1833.5,1833.4,0.16015267]
[1746599069510,5.45404963,1833.5,1833.2,0.7505]
[1746599069703,5.45404963,1833.5,1833.3,0.12941388]
[1746599069904,5.45394234,1833.6,1833.3,0.12941388]
[1746599070701,10.90796526,1833.6,1833.3,0.12941388]
[1746599071204,5.45394234,1833.6,1833.3,0.12941388]
[1746599071383,10.90796091,1833.6,1833.3,0.12941388]
[1746599073299,5.45394234,1833.6,1833.3,0.12941388]
[1746599080601,5.45394234,1833.6,1833.3,5.58401352]
[1746599080812,5.45394234,1833.6,1833.3,6.76839966]
[1746599081325,6.21862044,1833.7,1833.3,6.7682829]
[1746599081516,8.45322957,1833.8,1833.5,5.45393792]
[1746599081717,8.45322957,1833.8,1833.6,0.12896858]
[1746599082628,5.45322957,1833.8,1833.6,0.12896858]
[1746599083605,5.45322957,1833.8,1833.4,6.28117967]
[1746599083806,5.45322957,1833.8,1833.7,0.1284226]
[1746599084007,7.16971798,1833.8,1833.4,6.28117967]
[1746599084324,5.45322957,1833.8,1833.4,6.28117967]
[1746599084494,5.45322957,1833.8,1833.5,0.12881862]
[1746599085632,5.45322957,1833.8,1833.5,5.58284981]
[1746599086223,11.71154679,1833.9,1833.5,5.58284981]
[1746599087397,11.71154679,1833.9,1833.5,5.58268053]
[1746599087606,11.71154679,1833.9,1833.5,6.76360948]
[1746599087923,10.87904679,1833.9,1833.5,6.76360948]
[1746599088131,10.87904679,1833.9,1833.5,6.76358909]
[1746599088533,10.87904679,1833.9,1833.6,5.45373194]
[1746599088697,9.24841775,1834.0,1833.7,0.8940266]
[1746599089097,8.45271775,1834.0,1833.7,0.8940266]
[1746599090329,13.90551055,1834.0,1833.7,0.8940266]
[1746599090636,8.45271775,1834.0,1833.7,0.8940266]
[1746599092054,13.90556836,1834.0,1833.7,0.8940266]
[1746599093145,5.45287245,1833.9,1833.7,0.8940266]
[1746599093304,4.3468,1834.1,1833.7,0.8940266]
[1746599093506,5.32408,1834.1,1833.7,0.8940266]
[1746599094029,3.0,1833.9,1833.7,0.8940266]
[1746599094731,3.0,1834.0,1833.7,6.34746165]
[1746599095311,5.4524298,1834.1,1833.7,11.80076275]
[1746599095649,10.87814027,1834.2,1833.7,6.34735986]
[1746599095856,5.45214027,1834.2,1833.8,6.87322525]
[1746599096065,3.0,1834.1,1833.9,5.45282667]
[1746599096244,3.0,1834.1,1833.9,5.607776]
[1746599096455,3.0,1834.2,1833.9,5.607776]
[1746599097151,11.66108154,1834.3,1833.9,5.607776]
[1746599097358,6.20916358,1834.3,1833.9,5.607776]
[1746599097562,6.20916358,1834.3,1833.9,6.85589893]
[1746599098245,11.66107199,1834.3,1833.9,6.85589893]
[1746599098443,5.45197889,1834.2,1833.9,6.85589893]
[1746599099426,5.45197889,1834.2,1833.9,1.4030616]
[1746599099644,5.45197889,1834.2,1833.9,0.15493867]
[1746599099967,5.45197889,1834.2,1833.8,6.87328836]
[1746599100166,5.45197889,1834.2,1834.0,0.15425641]
[1746599100465,5.45197889,1834.2,1833.9,5.60777947]
[1746599100637,5.45197889,1834.2,1834.1,0.15357423]
[1746599100841,5.45197889,1834.2,1834.0,0.15425641]
[1746599101038,5.45197889,1834.2,1834.1,0.15357423]
[1746599101250,8.50238895,1834.3,1834.1,0.15357423]
[1746599101559,11.50238895,1834.3,1834.2,0.15289212]
[1746599101727,13.5380715,1834.3,1834.2,0.15289212]
[1746599101928,5.45200441,1834.2,1833.9,5.45285269]
[1746599102249,5.45200441,1834.2,1834.0,0.15425641]
[1746599104967,10.90420158,1834.2,1834.0,0.15425641]
[1746599105152,5.45200441,1834.2,1834.0,0.15425641]
[1746599105362,5.45200441,1834.2,1833.8,6.87342548]
[1746599105548,5.45200441,1834.2,1834.1,0.15357423]
[1746599105746,5.45200441,1834.2,1833.8,6.23868949]
[1746599106081,5.45200441,1834.2,1833.9,0.15493867]
[1746599106373,5.45228061,1834.1,1833.8,0.7856]
[1746599106532,5.45228061,1834.1,1834.0,0.15425641]
[1746599106731,6.54270911,1834.1,1833.8,0.7856]
[1746599106933,5.45228061,1834.1,1833.9,0.15493867]
[1746599107227,5.45228061,1834.1,1833.8,0.7856]
[1746599107428,5.45228061,1834.1,1834.0,0.15425641]
[1746599107633,5.45228061,1834.1,1833.9,0.15493867]
[1746599107881,5.45228061,1834.1,1834.0,0.15425641]
[1746599108178,5.45228061,1834.1,1833.8,0.7856]
[1746599108381,5.45228061,1834.1,1834.0,0.15425641]
[1746599108534,5.45228061,1834.1,1833.9,0.15493867]
[1746599108866,5.45228061,1834.1,1833.8,0.7856]
[1746599109065,5.45228061,1834.1,1834.0,0.15425641]
[1746599109244,5.45228061,1834.1,1833.9,0.15493867]
[1746599109444,5.45228061,1834.1,1834.0,0.15425641]
[1746599109876,5.45228061,1834.1,1833.8,6.2387511]
[1746599110036,5.45228061,1834.1,1834.0,0.15425641]
[1746599110236,5.45228061,1834.1,1833.9,0.15493867]
[1746599110470,5.45228061,1834.1,1834.0,0.15425641]
[1746599110672,6.54270911,1834.1,1834.0,0.15425641]
[1746599111137,6.54270911,1834.1,1833.7,5.45324426]
[1746599111338,5.45228061,1834.1,1833.8,0.15524837]
[1746599112551,5.45256598,1834.0,1833.8,0.15524837]
[1746599112871,6.25198061,1834.1,1833.8,0.15524837]
[1746599114879,0.7997,1834.1,1833.8,5.60839147]
[1746599115173,5.45209335,1834.2,1833.8,5.60823134]
[1746599115373,5.45209335,1834.2,1833.9,0.772]
[1746599115740,5.45209335,1834.2,1834.0,0.15270361]
[1746599117276,9.27897736,1834.3,1834.0,0.15270361]
[1746599117483,8.45177736,1834.3,1834.0,5.60521242]
[1746599117778,5.45214481,1834.2,1834.0,0.15270361]
[1746599118639,8.45176598,1834.3,1834.0,0.15270361]
[1746599119380,8.45176598,1834.3,1834.0,5.60526382]
[1746599119672,8.45176598,1834.3,1834.0,0.15270361]
[1746599120186,13.90366357,1834.3,1834.0,0.15270361]
[1746599121249,5.45198305,1834.2,1834.0,0.15270361]
[1746599126481,5.45198305,1834.2,1833.9,0.772]
[1746599126782,5.45198305,1834.2,1833.9,1.54719707]
[1746599133469,5.45231535,1834.1,1833.9,0.92470269]
[1746599134499,10.90418927,1834.2,1833.9,0.92470269]
[1746599134859,5.45198305,1834.2,1833.9,0.92470269]
[1746599135073,10.90421619,1834.2,1833.9,0.92470269]
[1746599136302,5.45229759,1834.1,1833.9,0.92470269]
[1746599137503,5.45214377,1834.2,1833.9,0.92470269]
[1746599138825,10.90433777,1834.2,1833.9,0.92470269]
[1746599139519,5.45214377,1834.2,1833.9,0.92470269]
[1746599149427,10.90434587,1834.2,1833.9,0.15270269]
[1746599149626,5.45230231,1834.1,1833.9,0.15270269]
[1746599149995,5.45230231,1834.1,1833.7,11.71467228]
[1746599150226,5.45230231,1834.1,1833.8,1.32491437]
[1746599151315,5.45230231,1834.1,1833.8,6.77804743]
[1746599152900,6.21820231,1834.1,1833.8,6.77804743]
[1746599153326,8.18299825,1834.1,1833.8,0.15344714]
[1746599153629,5.45265238,1834.0,1833.8,0.15344714]
[1746599154520,8.18317102,1834.1,1833.8,0.15344714]
[1746599154717,6.21837508,1834.1,1833.8,0.15344714]
[1746599155443,5.45219179,1834.2,1833.9,0.7998]
[1746599155602,8.45184556,1834.3,1833.9,6.89327771]
[1746599155805,13.90376363,1834.3,1833.9,7.0462289]
[1746599156532,8.45184556,1834.3,1833.9,7.0462289]
[1746599157133,8.45184556,1834.3,1833.9,7.10075123]
[1746599159710,8.45184556,1834.3,1833.9,7.10057545]
[1746599160534,13.90377967,1834.3,1833.9,7.10057545]
[1746599160827,8.45184556,1834.3,1833.9,7.10057545]
[1746599161330,8.45184556,1834.3,1833.9,6.94762426]
[1746599161632,8.45184556,1834.3,1833.9,6.14782426]
[1746599161933,8.45184556,1834.3,1834.0,0.8182]
[1746599163145,13.9037564,1834.3,1834.0,0.8182]
[1746599163437,5.45199964,1834.2,1834.0,0.8182]
[1746599163644,5.45199964,1834.2,1833.9,0.64063764]
[1746599164007,5.45199964,1834.2,1833.8,11.6425476]
[1746599164229,5.45199964,1834.2,1833.8,11.7952495]
[1746599165230,5.45199964,1834.2,1833.8,17.24818584]
[1746599165618,5.45199964,1834.2,1833.8,11.79513824]
[1746599166348,5.45199964,1834.2,1833.8,17.24807264]
[1746599166640,5.45199964,1834.2,1833.8,19.88191785]
[1746599167546,5.45199964,1834.2,1833.8,14.42898151]
[1746599170548,5.45199964,1834.2,1833.8,19.88193146]
[1746599171142,5.45199964,1834.2,1833.8,14.42898151]
[1746599173743,5.45199964,1834.2,1833.9,5.50738226]
[1746599173917,5.45199964,1834.2,1833.9,7.50101864]
[1746599174429,5.45199964,1834.2,1833.9,7.65353499]
[1746599178037,5.45199964,1834.2,1833.9,0.15251635]
[1746599178353,5.45199964,1834.2,1833.8,14.27629216]
[1746599178544,6.28219964,1834.2,1833.9,0.15251635]
[1746599179219,6.28219964,1834.2,1833.8,14.27629216]
[1746599179423,6.28219964,1834.2,1833.9,0.15251635]
[1746599179622,6.28219964,1834.2,1833.8,14.27629216]
[1746599179959,6.28219964,1834.2,1833.9,0.15251635]
[1746599180255,6.28219964,1834.2,1833.8,14.27629216]
[1746599180427,6.28219964,1834.2,1833.9,1.58014557]
[1746599184255,0.8302,1834.2,1833.9,7.08737629]
[1746599184455,6.28216864,1834.2,1833.9,7.08737629]
[1746599187265,6.26348735,1834.6,1834.1,1.96466359]
[1746599187460,6.26348735,1834.6,1834.1,5.45212586]
[1746599187643,5.45121387,1834.5,1834.1,5.45212586]
[1746599188333,5.45121387,1834.5,1834.2,5.45195471]
[1746599189770,5.45121387,1834.5,1834.1,5.45209084]
[1746599190072,5.45121387,1834.5,1834.1,10.90416708]
[1746599190272,5.45121387,1834.5,1834.2,1.09041671]
[1746599190581,5.45138908,1834.4,1834.1,5.45207624]
[1746599193181,6.25428908,1834.4,1834.1,5.45207624]
[1746599194578,0.8029,1834.4,1834.1,5.45207624]
[1746599194779,0.8029,1834.4,1834.1,10.95868288]
[1746599194955,6.21401387,1834.5,1834.1,5.50659174]
[1746599195155,6.21401387,1834.5,1834.1,6.87597607]
[1746599195353,6.21401387,1834.5,1834.2,5.45195024]
[1746599195552,0.7628,1834.5,1834.2,5.45195024]
[1746599195758,6.21391192,1834.5,1834.2,5.45195024]
[1746599200076,6.21393648,1834.5,1834.1,6.82144283]
[1746599200876,5.45113648,1834.5,1834.1,5.4520585]
[1746599201168,0.7722,1834.4,1834.1,5.4520585]
[1746599204469,0.7722,1834.4,1834.2,5.45196667]
[1746599207485,0.7722,1834.4,1834.1,5.4520585]
[1746599208280,0.7722,1834.4,1834.2,5.45194467]
[1746599209590,0.7722,1834.4,1834.2,6.54234499]
[1746599210889,0.7722,1834.4,1834.1,10.90414188]
[1746599211187,0.7722,1834.4,1834.2,5.45195129]
[1746599211551,0.7722,1834.4,1834.1,5.45213609]
[1746599211958,0.7722,1834.4,1834.2,5.45194872]
[1746599213091,0.7722,1834.4,1834.1,5.45213609]
[1746599213595,0.7722,1834.4,1834.1,7.08379993]
[1746599216509,6.22359683,1834.4,1834.1,7.08379993]
[1746599218999,6.24105924,1834.1,1833.9,6.04]
[1746599219198,0.7886,1834.1,1833.8,9.12539172]
[1746599221011,6.24090886,1834.1,1833.9,18.0]
[1746599221214,0.7886,1834.1,1833.9,18.0]
[1746599222485,0.7886,1834.1,1833.9,18.15251635]
[1746599223013,0.7886,1834.1,1833.9,0.15251635]
[1746599223314,0.7886,1834.1,1833.8,9.12539172]
[1746599223492,0.7886,1834.1,1833.9,0.15251635]
[1746599223693,0.7886,1834.1,1833.8,10.77972435]
[1746599223881,0.7886,1834.1,1833.9,0.15251635]
[1746599224082,0.7886,1834.1,1833.8,10.83417639]
[1746599224282,0.7886,1834.1,1833.9,5.60519095]
[1746599224481,0.7886,1834.1,1833.9,7.44559404]
[1746599225897,6.21632241,1834.3,1833.9,2.04738155]
[1746599226101,6.21632241,1834.3,1833.9,5.6597031]
[1746599227990,5.45210901,1834.2,1833.9,0.15245425]
[1746599228322,0.782,1834.1,1833.8,5.45293622]
[1746599228489,0.782,1834.1,1833.9,0.15245425]
[1746599228687,0.782,1834.1,1833.8,5.45293622]
[1746599228914,0.782,1834.1,1833.9,0.15245425]
[1746599229702,0.782,1834.1,1833.8,6.74002758]
[1746599229890,0.782,1834.1,1833.9,0.15245425]
[1746599230090,0.782,1834.1,1833.8,12.19299978]
[1746599230294,0.782,1834.1,1833.9,0.15245425]
[1746599230503,0.782,1834.1,1833.8,12.19299978]
[1746599230719,0.782,1834.1,1833.9,1.37175423]
[1746599233225,0.782,1834.1,1833.9,0.15245425]
[1746599233524,0.782,1834.1,1833.8,10.90589998]
[1746599233723,0.782,1834.1,1833.9,0.15245425]
[1746599234104,0.782,1834.1,1833.8,5.45293622]
[1746599234303,0.782,1834.1,1833.9,0.15251638]
[1746599234825,0.782,1834.1,1833.8,5.45293622]
[1746599235007,0.782,1834.1,1833.9,0.15251638]
[1746599235330,0.782,1834.1,1833.8,6.74003453]
[1746599235529,0.782,1834.1,1833.9,0.15251638]
[1746599236531,0.782,1834.1,1833.8,6.74003453]
[1746599236699,0.782,1834.1,1833.9,0.85251638]
[1746599237335,6.23431591,1834.1,1833.9,0.85251638]
[1746599237837,0.782,1834.1,1833.9,0.85251638]
[1746599240740,6.23438191,1834.1,1833.9,0.85251638]
[1746599248026,8.20822629,1834.0,1833.9,0.85251638]
[1746599248343,11.75822629,1834.0,1833.9,0.15251638]
[1746599248748,0.7715,1833.5,1833.4,3.67237946]
[1746599249254,0.7715,1833.5,1833.4,3.82967464]
[1746599249646,6.22554963,1833.5,1833.4,3.82967464]
[1746599251267,7.39348272,1833.5,1833.4,3.82967464]
[1746599251565,7.39348272,1833.5,1833.4,0.15729518]
[1746599251953,5.45438811,1833.4,1833.2,3.67237946]
[1746599252151,6.22573679,1833.5,1833.4,0.15729518]
[1746599252333,6.22573679,1833.5,1833.3,0.15797788]
[1746599252534,6.22573679,1833.5,1833.4,0.15729518]
[1746599252954,11.68003145,1833.5,1833.2,3.67237946]
[1746599253153,6.22573679,1833.5,1833.4,0.16015302]
[1746599253488,6.22573679,1833.5,1833.3,0.16083573]
[1746599253765,6.22573679,1833.5,1833.4,0.16015302]
[1746599254166,6.22573679,1833.5,1833.2,3.67237946]
[1746599254329,6.22573679,1833.5,1833.4,0.1599666]
[1746599254532,6.22573679,1833.5,1833.2,3.67237946]
[1746599254735,6.22573679,1833.5,1833.4,0.1599666]
[1746599254928,6.22573679,1833.5,1833.3,0.1606493]
[1746599255640,6.22573679,1833.5,1833.1,5.45521041]
[1746599255845,6.22573679,1833.5,1833.4,0.1599666]
[1746599256040,6.22573679,1833.5,1833.1,8.58833427]
[1746599256244,6.22573679,1833.5,1833.4,0.1599666]
[1746599256444,6.22573679,1833.5,1833.1,8.58833427]
[1746599256964,6.22573679,1833.5,1833.2,0.16133208]
[1746599258377,5.45436579,1833.4,1833.2,0.16133208]
[1746599258879,6.22573679,1833.5,1833.2,0.16133208]
[1746599259392,11.68004358,1833.5,1833.2,0.16133208]
[1746599259676,5.45437911,1833.4,1833.2,0.16133208]
[1746599260575,9.24464462,1833.3,1833.2,0.16133208]
[1746599260777,5.45513766,1833.2,1832.7,12.30598073]
[1746599260976,6.24535285,1833.1,1832.7,0.8097]
[1746599261275,5.45563471,1833.0,1832.7,0.8097]
[1746599262476,5.45563471,1833.0,1832.6,9.93921281]
[1746599262647,5.45563471,1833.0,1832.6,12.56091937]
[1746599264162,10.91144014,1833.0,1832.6,12.56091937]
[1746599264362,5.45563471,1833.0,1832.6,12.56091937]
[1746599264998,5.45563471,1833.0,1832.7,5.45638911]
[1746599265168,6.24544802,1833.1,1832.7,5.45638911]
[1746599265466,6.24544802,1833.1,1832.7,7.25811996]
[1746599265793,6.24544802,1833.1,1832.7,1.80173085]
[1746599266000,5.45564442,1833.0,1832.8,18.0]
[1746599267409,5.45564442,1833.0,1832.7,5.45642034]
[1746599267585,5.45564442,1833.0,1832.6,8.88856261]
[1746599268371,5.45586517,1832.9,1832.6,8.88856261]
[1746599268592,5.45586517,1832.9,1832.6,5.45655605]
[1746599269195,5.45586517,1832.9,1832.5,5.45687121]